[Event "FishPartners Open 2018"]
[Site "Spakenburg"]
[Date "2018.07.07"]
[Round "1"]
[White "Nijboer, Friso"]
[Black "Heuveling, Gijs-Cor"]
[Result "1-0"]
[ECO "B00"]
[WhiteElo "2495"]
[BlackElo "1943"]
[Annotator "ChessBase"]
[PlyCount "59"]
[EventDate "2018.07.07"]
[EventType "swiss"]
[EventCountry "NED"]
[SourceTitle "playchess.com"]
[Source "ChessBase"]
[SourceQuality "1"]
[TimeControl "1500"]

1. e4 {[%emt 0:00:03]} d6 {[%emt 0:00:03]} 2. d4 {[%emt 0:00:03]} c6 {[%emt 0:00:08]} 3. f4 {[%emt 0:00:11]} g6 {[%emt 0:00:01]} 4. Nf3 {[%emt 0:00:03]} Bg7 {[%emt 0:00:01]} 5. Bd3 {[%emt 0:00:06]} Bg4 {[%emt 0:00:11]} 6. c3 {[%emt 0:00:04]} Nd7 {[%emt 0:00:08]} 7. Nbd2 {[%emt 0:00:31]} Qc7 {[%emt 0:00:06]} 8. O-O {[%emt 0:00:23]} Bh6 {[%emt 0:00:37]} 9. h3 {[%emt 0:00:20]} Bxf3 {[%emt 0:00:02]} 10. Nxf3 {[%emt 0:00:01]} O-O-O {[%emt 0:00:25]} 11. Qb3 {[%emt 0:00:21]} e6 {[%emt 0:00:23]} 12. a4 {[%emt 0:00:03]} Qb6 {[%emt 0:00:18]} 13. Qc2 {[%emt 0:00:07]} f5 {[%emt 0:00:23]} 14. a5 {[%emt 0:00:06]} Qc7 {[%emt 0:00:05]} 15. exf5 {[%emt 0:01:01]} exf5 {[%emt 0:00:25]} 16. b4 {[%emt 0:00:04]} a6 {[%emt 0:00:10]} 17. Ng5 {[%emt 0:00:09]} Bxg5 {[%emt 0:00:13]} 18. fxg5 {[%emt 0:00:01]} h6 {[%emt 0:00:02]} 19. c4 {[%emt 0:00:07]} hxg5 {[%emt 0:00:35]} 20. Bxg5 {[%emt 0:00:02]} Ngf6 {[%emt 0:00:08]} 21. Rac1 {[%emt 0:00:32]} Rde8 {[%emt 0:00:10]} 22. b5 {[%emt 0:00:11]} Qxa5 {[%emt 0:00:29]} 23. bxc6 {[%emt 0:00:04]} bxc6 {[%emt 0:00:09]} 24. c5 {[%emt 0:00:02]} dxc5 {[%emt 0:00:50]} 25. Ra1 {[%emt 0:00:31]} Qb4 {[%emt 0:01:10]} 26. Bxa6+ {[%emt 0:00:03]} Kd8 {[%emt 0:00:11]} 27. Ra4 {[%emt 0:00:20]} Qb6 {[%emt 0:00:18]} 28. dxc5 {[%emt 0:00:11]} Qc7 {[%emt 0:01:33]} 29. Rd4 {[%emt 0:00:38]} Rh5 {[%emt 0:00:20]} 30. Bxf6+ {[%emt 0:00:04]} 1-0

[Event "FishPartners Open 2018"]
[Site "Spakenburg"]
[Date "2018.07.07"]
[Round "1"]
[White "Beerdsen, Thomas"]
[Black "Cardon, Emile"]
[Result "1-0"]
[ECO "B50"]
[WhiteElo "2469"]
[BlackElo "1957"]
[Annotator "ChessBase"]
[PlyCount "55"]
[EventDate "2018.07.07"]
[EventType "swiss"]
[EventCountry "NED"]
[SourceTitle "playchess.com"]
[Source "ChessBase"]
[SourceQuality "1"]
[TimeControl "1500"]

1. e4 {[%emt 0:00:02]} c5 {[%emt 0:00:01]} 2. Nf3 {[%emt 0:00:02]} d6 {[%emt 0:00:02]} 3. c3 {[%emt 0:00:02]} Nf6 {[%emt 0:00:05]} 4. h3 {[%emt 0:00:01]} Nc6 {[%emt 0:00:09]} 5. Bd3 {[%emt 0:00:02]} e6 {[%emt 0:01:04]} 6. O-O {[%emt 0:00:11]} Be7 {[%emt 0:00:02]} 7. Re1 {[%emt 0:00:13]} O-O {[%emt 0:00:06]} 8. Bc2 {[%emt 0:00:13]} Qc7 {[%emt 0:00:15]} 9. d4 {[%emt 0:00:14]} cxd4 {[%emt 0:00:08]} 10. cxd4 {[%emt 0:00:01]} e5 {[%emt 0:01:10]} 11. Nc3 {[%emt 0:00:08]} a6 {[%emt 0:00:07]} 12. Bg5 {[%emt 0:00:04]} Nxd4 {[%emt 0:01:07]} 13. Nxd4 {[%emt 0:00:07]} exd4 {[%emt 0:00:07]} 14. Qxd4 {[%emt 0:00:05]} Be6 {[%emt 0:00:08]} 15. Rac1 {[%emt 0:00:18]} h6 {[%emt 0:00:37]} 16. Nd5 {[%emt 0:00:57]} Bxd5 {[%emt 0:02:09]} 17. exd5 {[%emt 0:00:02]} Qd8 {[%emt 0:01:16]} 18. Bh4 {[%emt 0:00:06]} g5 {[%emt 0:00:59]} 19. Bg3 {[%emt 0:00:06]} Rc8 {[%emt 0:00:18]} 20. h4 {[%emt 0:00:17]} Rc5 {[%emt 0:02:24]} 21. hxg5 {[%emt 0:00:08]} hxg5 {[%emt 0:00:14]} 22. Qe3 {[%emt 0:00:20]} Nxd5 {[%emt 0:00:20]} 23. Qe4 {[%emt 0:00:03]} f5 {[%emt 0:00:42]} 24. Qe2 {[%emt 0:00:41]} Bf6 {[%emt 0:00:46]} 25. Qe6+ {[%emt 0:00:25]} Kg7 {[%emt 0:00:13]} 26. Qxf5 {[%emt 0:00:09]} Rh8 {[%emt 0:00:44]} 27. Qg6+ {[%emt 0:00:02]} Kf8 {[%emt 0:00:13]} 28. Bxd6+ {[%emt 0:00:03]} 1-0

[Event "FishPartners Open 2018"]
[Site "Spakenburg"]
[Date "2018.07.07"]
[Round "1"]
[White "Bosboom, Manuel"]
[Black "De Witte, Wiebe"]
[Result "1-0"]
[ECO "A15"]
[WhiteElo "2403"]
[BlackElo "1800"]
[Annotator "ChessBase"]
[PlyCount "75"]
[EventDate "2018.07.07"]
[EventType "swiss"]
[EventCountry "NED"]
[SourceTitle "playchess.com"]
[Source "ChessBase"]
[SourceQuality "1"]
[TimeControl "1500"]

1. c4 {[%emt 0:00:04]} Nf6 {[%emt 0:00:01]} 2. Nf3 {[%emt 0:00:02]} d6 {[%emt 0:00:05]} 3. e3 {[%emt 0:00:10]} g6 {[%emt 0:00:01]} 4. b3 {[%emt 0:00:01]} Bg7 {[%emt 0:00:01]} 5. Bb2 {[%emt 0:00:02]} O-O {[%emt 0:00:03]} 6. Qc2 {[%emt 0:00:07]} c5 {[%emt 0:00:22]} 7. a3 {[%emt 0:00:04]} Bf5 {[%emt 0:00:46]} 8. d3 {[%emt 0:00:03]} Nc6 {[%emt 0:00:23]} 9. Nbd2 {[%emt 0:00:03]} Qc7 {[%emt 0:00:33]} 10. Be2 {[%emt 0:00:03]} a6 {[%emt 0:00:16]} 11. h3 {[%emt 0:00:03]} b5 {[%emt 0:00:03]} 12. g4 {[%emt 0:00:02]} Bd7 {[%emt 0:00:13]} 13. Rg1 {[%emt 0:00:08]} bxc4 {[%emt 0:00:50]} 14. dxc4 {[%emt 0:00:17]} Rab8 {[%emt 0:00:40]} 15. g5 {[%emt 0:00:05]} Ne8 {[%emt 0:02:02]} 16. Bxg7 {[%emt 0:00:16]} Nxg7 {[%emt 0:00:04]} 17. h4 {[%emt 0:00:02]} Qa5 {[%emt 0:00:46]} 18. Qb2 {[%emt 0:00:35]} Bf5 {[%emt 0:01:47]} 19. Nh2 {[%emt 0:01:35]} Ne5 {[%emt 0:00:30]} 20. f4 {[%emt 0:00:29]} Nd3+ {[%emt 0:00:49]} 21. Bxd3 {[%emt 0:00:01]} Bxd3 {[%emt 0:00:02]} 22. Kf2 {[%emt 0:00:21]} Bf5 {[%emt 0:01:44]} 23. Nhf3 {[%emt 0:01:14]} Rb7 {[%emt 0:00:28]} 24. Rgc1 {[%emt 0:02:41]} Rfb8 {[%emt 0:00:29]} 25. Qc3 {[%emt 0:00:01]} Qc7 {[%emt 0:01:47]} 26. Ra2 {[%emt 0:00:51]} Qc6 {[%emt 0:00:31]} 27. Rb2 {[%emt 0:00:07]} Be4 {[%emt 0:01:32]} 28. Rd1 {[%emt 0:00:39]} Nf5 {[%emt 0:00:23]} 29. Nh2 {[%emt 0:00:29]} Nxh4 {[%emt 0:01:30]} 30. Ng4 {[%emt 0:00:02]} Nf5 {[%emt 0:00:03]} 31. Nxe4 {[%emt 0:01:12]} Qxe4 {[%emt 0:00:03]} 32. Rd5 {[%emt 0:00:02]} f6 {[%emt 0:02:02]} 33. gxf6 {[%emt 0:01:09]} e6 {[%emt 0:00:03]} 34. Rxf5 {[%emt 0:02:12]} exf5 {[%emt 0:00:03]} 35. Nh6+ {[%emt 0:00:53]} Kf8 {[%emt 0:00:07]} 36. f7 {[%emt 0:00:02]} Ke7 {[%emt 0:00:50]} 37. Qg7 {[%emt 0:00:26]} Rf8 {[%emt 0:00:53]} 38. Ng8+ {Rfb8} 1-0

[Event "FishPartners Open 2018"]
[Site "Spakenburg"]
[Date "2018.07.07"]
[Round "1"]
[White "Uneken, Bert"]
[Black "Tasc, R30 (computer)"]
[Result "0-1"]
[ECO "D27"]
[WhiteElo "1804"]
[BlackElo "2380"]
[Annotator "ChessBase"]
[PlyCount "60"]
[EventDate "2018.07.07"]
[EventType "swiss"]
[EventCountry "NED"]
[SourceTitle "playchess.com"]
[Source "ChessBase"]
[SourceQuality "1"]
[TimeControl "1500"]

1. d4 {[%emt 0:00:06]} d5 {[%emt 0:00:16]} 2. c4 {[%emt 0:00:03]} dxc4 {[%emt 0:00:12]} 3. e3 {[%emt 0:00:03]} e6 {[%emt 0:00:12]} 4. Bxc4 {[%emt 0:00:04]} c5 {[%emt 0:00:13]} 5. Nf3 {[%emt 0:00:11]} Nf6 {[%emt 0:00:11]} 6. O-O {[%emt 0:00:22]} a6 {[%emt 0:00:12]} 7. a4 {[%emt 0:00:37]} Nc6 {[%emt 0:00:15]} 8. Nc3 {[%emt 0:00:36]} Qc7 {[%emt 0:00:12]} 9. Re1 {[%emt 0:01:18]} Be7 {[%emt 0:00:28]} 10. e4 {[%emt 0:00:37]} Ng4 {[%emt 0:00:39]} 11. d5 {[%emt 0:01:05]} Nd4 {[%emt 0:00:41]} 12. g3 {[%emt 0:01:12]} O-O {[%emt 0:00:52]} 13. Bf4 {[%emt 0:01:30]} e5 {[%emt 0:00:31]} 14. Bc1 {[%emt 0:03:06]} Nf6 {[%emt 0:00:30]} 15. Qd3 {[%emt 0:02:38]} Bg4 {[%emt 0:00:33]} 16. Nd2 {[%emt 0:00:53]} Rfd8 {[%emt 0:00:30]} 17. f3 {[%emt 0:01:05]} Bh5 {[%emt 0:00:17]} 18. Ne2 {[%emt 0:01:34]} Bg6 {[%emt 0:00:49]} 19. Nxd4 {[%emt 0:00:21]} cxd4 {[%emt 0:00:37]} 20. Ba2 {[%emt 0:00:29]} Nxd5 {[%emt 0:00:31]} 21. Bxd5 {[%emt 0:01:21]} Rxd5 {[%emt 0:00:28]} 22. Qb3 {[%emt 0:00:08]} Rc5 {[%emt 0:00:23]} 23. Qa2 {[%emt 0:00:22]} Rc2 {[%emt 0:00:26]} 24. Qb3 {[%emt 0:00:31]} a5 {[%emt 0:00:12]} 25. Nf1 {[%emt 0:00:27]} Ra6 {[%emt 0:00:25]} 26. Bd2 {[%emt 0:00:12]} Rb6 {[%emt 0:00:39]} 27. Qd5 {[%emt 0:00:25]} Rbxb2 {[%emt 0:00:17]} 28. Bxa5 {[%emt 0:00:19]} Rg2+ {[%emt 0:00:23]} 29. Kh1 {[%emt 0:00:01]} Rxh2+ {[%emt 0:00:14]} 30. Nxh2 {[%emt 0:00:09]} Qc2 {[%emt 0:00:16]} 0-1

[Event "FishPartners Open 2018"]
[Site "Spakenburg"]
[Date "2018.07.07"]
[Round "1"]
[White "Van Pel, Gerben"]
[Black "Lai, Hing Ting"]
[Result "0-1"]
[ECO "B06"]
[WhiteElo "1802"]
[BlackElo "2447"]
[Annotator "ChessBase"]
[PlyCount "38"]
[EventDate "2018.07.07"]
[EventType "swiss"]
[EventCountry "NED"]
[SourceTitle "playchess.com"]
[Source "ChessBase"]
[SourceQuality "1"]
[TimeControl "1500"]

1. e4 {[%emt 0:00:03]} d6 {[%emt 0:00:02]} 2. d4 {[%emt 0:00:02]} g6 {[%emt 0:00:00]} 3. Nc3 {[%emt 0:00:00]} Bg7 {[%emt 0:00:01]} 4. Be3 {[%emt 0:00:01]} a6 {[%emt 0:00:01]} 5. Qd2 {[%emt 0:00:01]} b5 {[%emt 0:00:00]} 6. a3 {[%emt 0:00:02]} Bb7 {[%emt 0:00:05]} 7. O-O-O {[%emt 0:00:04]} Nd7 {[%emt 0:00:01]} 8. f4 {[%emt 0:00:05]} Rc8 {[%emt 0:00:12]} 9. Nf3 {[%emt 0:00:02]} c5 {[%emt 0:00:01]} 10. e5 {[%emt 0:00:25]} Nh6 {[%emt 0:02:29]} 11. dxc5 {[%emt 0:01:18]} Nxc5 {[%emt 0:01:00]} 12. exd6 {[%emt 0:00:37]} O-O {[%emt 0:01:05]} 13. Bxc5 {[%emt 0:00:15]} Rxc5 {[%emt 0:00:02]} 14. Qe3 {[%emt 0:00:03]} exd6 {[%emt 0:00:26]} 15. Ne4 {[%emt 0:00:39]} Qe7 {[%emt 0:00:58]} 16. Re1 {[%emt 0:01:12]} Ng4 {[%emt 0:00:10]} 17. Qd3 {[%emt 0:00:38]} Bxe4 {[%emt 0:00:02]} 18. Rxe4 {[%emt 0:00:08]} Qf6 {[%emt 0:00:00]} 19. Qd4 {[%emt 0:02:49]} Qxd4 {[%emt 0:00:13]} 0-1

[Event "FishPartners Open 2018"]
[Site "Spakenburg"]
[Date "2018.07.07"]
[Round "1"]
[White "Reichardt, Thomas"]
[Black "Van Foreest, Lucas"]
[Result "0-1"]
[ECO "C47"]
[WhiteElo "1789"]
[BlackElo "2488"]
[Annotator "ChessBase"]
[PlyCount "70"]
[EventDate "2018.07.07"]
[EventType "swiss"]
[EventCountry "NED"]
[SourceTitle "playchess.com"]
[Source "ChessBase"]
[SourceQuality "1"]
[TimeControl "1500"]

1. e4 {[%emt 0:00:03]} e5 {[%emt 0:00:00]} 2. Nf3 {[%emt 0:00:03]} Nc6 {[%emt 0:00:02]} 3. Bc4 {[%emt 0:00:01]} Nf6 {[%emt 0:00:02]} 4. Nc3 {[%emt 0:00:05]} Nxe4 {[%emt 0:00:15]} 5. Nxe4 {[%emt 0:00:24]} d5 {[%emt 0:00:02]} 6. Bxd5 {[%emt 0:00:01]} Qxd5 7. Nc3 Qa5 {[%emt 0:01:01]} 8. h3 {[%emt 0:00:24]} Bf5 {[%emt 0:00:48]} 9. d3 {[%emt 0:00:11]} Be7 {[%emt 0:00:36]} 10. O-O {[%emt 0:00:08]} O-O {[%emt 0:00:04]} 11. Be3 {[%emt 0:00:52]} Rad8 {[%emt 0:00:24]} 12. a3 {[%emt 0:00:41]} Nd4 {[%emt 0:01:56]} 13. Bxd4 {[%emt 0:01:53]} exd4 {[%emt 0:00:05]} 14. Ne2 {[%emt 0:00:05]} Qb6 {[%emt 0:00:14]} 15. Ng3 {[%emt 0:00:44]} Be6 {[%emt 0:00:16]} 16. Qc1 {[%emt 0:00:13]} c5 {[%emt 0:00:26]} 17. Re1 {[%emt 0:00:34]} Rfe8 {[%emt 0:00:15]} 18. Ne4 {[%emt 0:00:23]} Bd5 {[%emt 0:00:14]} 19. b3 {[%emt 0:00:33]} f5 {[%emt 0:00:31]} 20. Ng3 {[%emt 0:00:50]} Bxf3 {[%emt 0:00:06]} 21. gxf3 {[%emt 0:00:02]} Qf6 {[%emt 0:01:02]} 22. Qf4 {[%emt 0:00:33]} g6 {[%emt 0:00:02]} 23. Re2 {[%emt 0:00:40]} Bd6 {[%emt 0:00:06]} 24. Qd2 {[%emt 0:00:36]} Qh4 {[%emt 0:01:00]} 25. Kg2 {[%emt 0:00:31]} Bf4 {[%emt 0:00:07]} 26. Qe1 {[%emt 0:00:24]} Kf7 {[%emt 0:00:32]} 27. b4 {[%emt 0:01:35]} Rxe2 {[%emt 0:00:29]} 28. Qxe2 {[%emt 0:00:02]} Re8 {[%emt 0:00:03]} 29. Qf1 {[%emt 0:00:07]} Qe7 {[%emt 0:00:13]} 30. Rb1 {[%emt 0:00:30]} h5 {[%emt 0:00:17]} 31. bxc5 {[%emt 0:02:59]} h4 {[%emt 0:00:01]} 32. Nh1 {[%emt 0:01:08]} Qg5+ {[%emt 0:00:15]} 33. Ng3 {[%emt 0:00:01]} hxg3 {[%emt 0:00:09]} 34. fxg3 {[%emt 0:00:02]} Qxg3+ {[%emt 0:00:03]} 35. Kh1 {[%emt 0:00:02]} Qh2# 0-1

[Event "FishPartners Open 2018"]
[Site "Spakenburg"]
[Date "2018.07.07"]
[Round "2"]
[White "Van Foreest, Lucas"]
[Black "Kazarian, Anna-Maja"]
[Result "1-0"]
[ECO "B13"]
[WhiteElo "2488"]
[BlackElo "2150"]
[Annotator "ChessBase"]
[PlyCount "171"]
[EventDate "2018.07.07"]
[EventType "swiss"]
[EventCountry "NED"]
[SourceTitle "playchess.com"]
[Source "ChessBase"]
[SourceQuality "1"]
[TimeControl "1500"]

1. e4 {[%emt 0:00:02]} c6 {[%emt 0:00:01]} 2. d4 {[%emt 0:00:03]} d5 {[%emt 0:00:01]} 3. exd5 {[%emt 0:00:01]} cxd5 {[%emt 0:00:01]} 4. Bd3 {[%emt 0:00:01]} Nc6 {[%emt 0:00:02]} 5. c3 {[%emt 0:00:01]} Nf6 {[%emt 0:00:18]} 6. Bf4 {[%emt 0:00:01]} e6 {[%emt 0:00:54]} 7. Nf3 {[%emt 0:00:05]} Bd6 {[%emt 0:00:01]} 8. Bxd6 {[%emt 0:00:04]} Qxd6 {[%emt 0:00:02]} 9. O-O {[%emt 0:00:02]} O-O {[%emt 0:00:02]} 10. Re1 {[%emt 0:00:01]} Re8 {[%emt 0:00:18]} 11. Nbd2 {[%emt 0:00:05]} e5 {[%emt 0:00:26]} 12. dxe5 {[%emt 0:00:17]} Nxe5 {[%emt 0:00:02]} 13. Nxe5 {[%emt 0:00:12]} Rxe5 {[%emt 0:00:02]} 14. Rxe5 {[%emt 0:00:08]} Qxe5 {[%emt 0:00:02]} 15. Nf3 {[%emt 0:00:16]} Qd6 {[%emt 0:01:09]} 16. Nd4 {[%emt 0:00:13]} Bd7 {[%emt 0:01:44]} 17. h3 {[%emt 0:00:39]} Re8 {[%emt 0:00:09]} 18. Qb3 {[%emt 0:00:17]} b6 {[%emt 0:01:24]} 19. a4 {[%emt 0:00:37]} Qf4 {[%emt 0:01:06]} 20. Qc2 {[%emt 0:01:19]} Re5 {[%emt 0:02:13]} 21. Qc1 {[%emt 0:03:36]} Qxc1+ {[%emt 0:01:38]} 22. Rxc1 {[%emt 0:00:02]} a5 {[%emt 0:01:14]} 23. Bc2 {[%emt 0:00:32]} Ne8 {[%emt 0:00:48]} 24. Rd1 {[%emt 0:01:19]} Nc7 {[%emt 0:00:40]} 25. Kf1 {[%emt 0:00:44]} Kf8 {[%emt 0:00:17]} 26. Bb3 {[%emt 0:00:31]} Ke7 {[%emt 0:01:21]} 27. Rd2 {[%emt 0:01:10]} Kd6 {[%emt 0:02:19]} 28. Ne2 {[%emt 0:00:44]} Bc6 {[%emt 0:00:47]} 29. Nd4 {[%emt 0:00:02]} Bd7 {[%emt 0:00:03]} 30. f3 {[%emt 0:00:08]} Bc8 {[%emt 0:01:22]} 31. Kf2 {[%emt 0:00:26]} g5 {[%emt 0:00:26]} 32. h4 {[%emt 0:00:40]} h6 {[%emt 0:00:06]} 33. hxg5 {[%emt 0:00:12]} hxg5 {[%emt 0:00:01]} 34. Bc2 {[%emt 0:00:33]} Ne6 {[%emt 0:00:16]} 35. Nf5+ {[%emt 0:00:31]} Kc5 {[%emt 0:00:07]} 36. Nd4 {[%emt 0:00:24]} Kd6 {[%emt 0:00:01]} 37. Nb5+ {[%emt 0:00:26]} Kc5 {[%emt 0:00:05]} 38. Bd3 {[%emt 0:01:20]} Bd7 {[%emt 0:00:30]} 39. Bf1 {[%emt 0:00:30]} Bxb5 {[%emt 0:00:32]} 40. Bxb5 {[%emt 0:00:02]} d4 {[%emt 0:00:01]} 41. Rc2 {[%emt 0:00:04]} Kd6 {[%emt 0:00:10]} 42. Rd2 {[%emt 0:00:36]} Kc5 {[%emt 0:00:00]} 43. Rc2 {[%emt 0:00:16]} Kd6 {[%emt 0:00:01]} 44. Bc4 {[%emt 0:00:02]} dxc3 {[%emt 0:00:10]} 45. Rxc3 {[%emt 0:00:01]} f6 {[%emt 0:00:14]} 46. Bb5 {[%emt 0:00:26]} Nd4 {[%emt 0:00:05]} 47. Bd3 {[%emt 0:00:02]} Ne6 {[%emt 0:00:12]} 48. Bc4 {[%emt 0:00:21]} Nd4 {[%emt 0:00:13]} 49. Bf1 {[%emt 0:00:07]} Ne6 {[%emt 0:00:02]} 50. Rb3 {[%emt 0:00:05]} Kc7 {[%emt 0:00:02]} 51. Bb5 {[%emt 0:00:55]} Nd4 {[%emt 0:00:05]} 52. Rc3+ {[%emt 0:00:02]} Kd6 {[%emt 0:00:01]} 53. Bc4 {[%emt 0:00:14]} Nf5 {[%emt 0:00:05]} 54. Rc1 {[%emt 0:00:13]} Nd4 {[%emt 0:00:01]} 55. Bd3 {[%emt 0:00:05]} Ne6 {[%emt 0:00:02]} 56. b3 {[%emt 0:00:03]} Nd4 {[%emt 0:00:01]} 57. Bc4 {[%emt 0:00:03]} Kc5 {[%emt 0:00:01]} 58. Rd1 {[%emt 0:00:02]} Re8 {[%emt 0:00:07]} 59. Rd2 {[%emt 0:00:02]} Re5 {[%emt 0:00:01]} 60. Bf7 {[%emt 0:00:05]} Re7 {[%emt 0:00:02]} 61. Bc4 {[%emt 0:00:01]} Re5 {[%emt 0:00:01]} 62. Rd1 {[%emt 0:00:09]} Re7 {[%emt 0:00:00]} 63. Rh1 {[%emt 0:00:08]} f5 {[%emt 0:00:18]} 64. Rh6 {[%emt 0:00:04]} Rg7 {[%emt 0:00:02]} 65. Rf6 {[%emt 0:00:03]} f4 {[%emt 0:00:01]} 66. Rf8 {[%emt 0:00:03]} Rg6 {[%emt 0:00:01]} 67. Rd8 {[%emt 0:00:02]} Rd6 {[%emt 0:00:01]} 68. Rg8 {[%emt 0:00:03]} Kb4 {[%emt 0:00:02]} 69. Rxg5 {[%emt 0:00:03]} Nxb3 {[%emt 0:00:02]} 70. Bb5 {[%emt 0:00:27]} Rd2+ {[%emt 0:00:01]} 71. Kg1 {[%emt 0:00:01]} Nd4 {[%emt 0:00:01]} 72. Be8 {[%emt 0:00:08]} Rd1+ {[%emt 0:00:00]} 73. Kh2 {[%emt 0:00:02]} Ne2 {[%emt 0:00:01]} 74. Rb5+ {[%emt 0:00:03]} Ka3 {[%emt 0:00:02]} 75. Rxb6 {[%emt 0:00:06]} Ng3 {[%emt 0:00:01]} 76. Kh3 {[%emt 0:00:01]} Rd8 {[%emt 0:00:03]} 77. Bb5 {[%emt 0:00:03]} Rg8 {[%emt 0:00:03]} 78. Rf6 {[%emt 0:00:05]} Rh8+ {[%emt 0:00:02]} 79. Kg4 {[%emt 0:00:01]} Rg8+ {[%emt 0:00:02]} 80. Kh4 {[%emt 0:00:02]} Rh8+ {[%emt 0:00:00]} 81. Kg5 {[%emt 0:00:03]} Rh2 {[%emt 0:00:01]} 82. Rxf4 {[%emt 0:00:04]} Rxg2 83. Rg4 {[%emt 0:00:01]} Rg1 {[%emt 0:00:06]} 84. Kg6 {[%emt 0:00:03]} Kb3 {[%emt 0:00:01]} 85. f4 {[%emt 0:00:01]} Kc3 {[%emt 0:00:01]} 86. f5 {[%emt 0:00:03]} 1-0

[Event "FishPartners Open 2018"]
[Site "Spakenburg"]
[Date "2018.07.07"]
[Round "2"]
[White "Lai, Hing Ting"]
[Black "Van Brummelen, Kevin"]
[Result "1-0"]
[ECO "A41"]
[WhiteElo "2447"]
[BlackElo "2136"]
[Annotator "NA"]
[PlyCount "71"]
[EventDate "2018.07.07"]
[EventType "swiss"]
[EventCountry "NED"]
[SourceTitle "playchess.com"]
[Source "ChessBase"]
[SourceQuality "1"]
[TimeControl "1500"]

1. d4 {[%emt 0:00:03]} d6 {[%emt 0:00:02]} 2. Nf3 {[%emt 0:00:01]} g6 {[%emt 0:00:01]} 3. g3 {[%emt 0:00:07]} Bg7 {[%emt 0:00:02]} 4. Bg2 {[%emt 0:00:01]} Nf6 {[%emt 0:00:12]} 5. O-O {[%emt 0:00:02]} O-O {[%emt 0:00:02]} 6. c4 {[%emt 0:00:01]} c6 {[%emt 0:00:04]} 7. Nc3 {[%emt 0:00:02]} Nbd7 {[%emt 0:00:02]} 8. e4 {[%emt 0:00:01]} e5 {[%emt 0:00:02]} 9. Re1 {[%emt 0:00:02]} Re8 {[%emt 0:00:15]} 10. h3 {[%emt 0:00:01]} exd4 {[%emt 0:00:14]} 11. Nxd4 {[%emt 0:00:04]} Ne5 {[%emt 0:00:03] E69: Königsindisch (Hauptvariante des g3-Systems mit e2-e4 und h2-h3)} (11... a5 12. b3 h6 13. Bf4 Nc5 14. Qc2 Nh7 15. Rad1 Ng5 16. Kh2 Qb6 17. Bxd6 Bxh3 18. f4 Rad8 19. e5 Bg4 20. fxg5 Bxd1 21. Qxd1 hxg5 {0-1 (53) L'Ami,E (2611)-Markus,R (2662) Baku 2016}) 12. b3 {[%emt 0:00:03]} Ned7 {[%emt 0:02:44]} 13. Be3 {[%emt 0:00:06]} Nc5 {[%emt 0:00:19]} 14. Qc2 {[%emt 0:00:01]} Ne6 {[%emt 0:01:30]} 15. Nde2 $146 {[%emt 0:00:13]} ({Vorgänger:} 15. Kh2 Nxd4 16. Bxd4 Be6 17. f4 Re7 18. Rad1 Qc7 19. Rd2 a6 20. Qb2 Ne8 {½-½ (20) Karl,S (1274)-Marzisch,D (1499) Willingen 2016}) 15... Qc7 {[%emt 0:00:18]} 16. Rad1 {[%emt 0:00:03]} Bd7 {[%emt 0:01:47]} 17. Rd2 {[%emt 0:00:10]} Rad8 {[%emt 0:00:05]} 18. Red1 {[%emt 0:00:08]} Bc8 {[%emt 0:00:04]} 19. f4 {[%emt 0:00:04]} b6 {[%emt 0:00:19]} 20. g4 {[%emt 0:00:07]} Nf8 {[%emt 0:01:24]} 21. Ng3 {[%emt 0:00:14]} d5 {[%emt 0:01:47]} 22. e5 {[%emt 0:00:32]} Nxg4 {[%emt 0:00:47]} 23. hxg4 {[%emt 0:00:02]} Bxg4 {[%emt 0:00:02]} 24. cxd5 {[%emt 0:00:10]} Bxd1 {[%emt 0:00:07]} 25. Qxd1 {[%emt 0:00:08]} cxd5 {[%emt 0:00:21]} 26. Nxd5 {[%emt 0:00:05]} Qb8 {[%emt 0:00:15]} 27. Ne4 {[%emt 0:00:15]} Kh8 {[%emt 0:00:47]} 28. Ng5 {[%emt 0:00:18]} Kg8 {[%emt 0:00:25]} 29. Ne7+ {[%emt 0:00:08]} Rxe7 {[%emt 0:00:17]} 30. Rxd8 {[%emt 0:00:01]} Qc7 {[%emt 0:00:02]} 31. Qd6 {[%emt 0:00:15]} Qc3 $18 {[%emt 0:01:19]} (31... Qxd6 $142 32. Rxd6 Bh6) 32. Bd2 {[%emt 0:00:10]} Qc5+ {[%emt 0:00:30]} 33. Qxc5 {[%emt 0:00:02]} bxc5 {[%emt 0:00:02]} 34. Be3 {[%emt 0:00:03]} Rd7 {[%emt 0:01:46]} 35. Rxd7 {[%emt 0:00:06]} Nxd7 {[%emt 0:00:01]} 36. Bd5 {[%emt 0:00:01]} 1-0

[Event "FishPartners Open 2018"]
[Site "Spakenburg"]
[Date "2018.07.07"]
[Round "2"]
[White "Tasc, R30 (computer)"]
[Black "Van Twillert, Laurents"]
[Result "1-0"]
[ECO "A11"]
[WhiteElo "2380"]
[BlackElo "2097"]
[Annotator "NA"]
[PlyCount "79"]
[EventDate "2018.07.07"]
[EventType "swiss"]
[EventCountry "NED"]
[SourceTitle "playchess.com"]
[Source "ChessBase"]
[SourceQuality "1"]
[TimeControl "1500"]

1. c4 {[%emt 0:00:17]} c6 {[%emt 0:00:03]} 2. e4 {[%emt 0:00:15]} e5 {[%emt 0:00:04]} 3. d4 {[%emt 0:00:29]} exd4 {[%emt 0:00:10] B10: Caro-Kann: 2 d3 and 2 c4} 4. Qxd4 {[%emt 0:00:35]} Qf6 {[%emt 0:01:00]} 5. Nf3 {[%emt 0:00:28]} Bb4+ {[%emt 0:00:18]} 6. Bd2 {[%emt 0:00:19]} Qxd4 {[%emt 0:00:40]} 7. Nxd4 {[%emt 0:00:18]} Bxd2+ {[%emt 0:00:10]} 8. Nxd2 {[%emt 0:00:25]} d6 {[%emt 0:00:04]} 9. Be2 $146 {[%emt 0:00:24]} ({Predecessor:} 9. O-O-O Ne7 10. g3 Na6 11. Bg2 {½-½ (21) Nalbandian,T (2440)-Belikov,V (2520) Moscow 1998}) 9... Nf6 {[%emt 0:00:17]} 10. g4 {[%emt 0:00:14]} O-O {[%emt 0:02:34]} 11. g5 Ne8 12. O-O-O {[%emt 0:01:11]} Na6 {[%emt 0:00:37]} 13. Rhg1 {[%emt 0:00:29]} Nac7 {[%emt 0:00:02]} 14. Rg3 {[%emt 0:00:32]} Ne6 {[%emt 0:00:20]} 15. Nf5 {[%emt 0:00:15]} Nf4 {[%emt 0:00:38]} 16. Bg4 {[%emt 0:00:15]} Ng6 {[%emt 0:01:33]} 17. f4 {[%emt 0:00:37]} f6 {[%emt 0:03:33]} 18. Rf1 {[%emt 0:00:43]} fxg5 {[%emt 0:01:22]} 19. fxg5 {[%emt 0:00:15]} Kh8 {[%emt 0:00:12]} 20. Bh5 {[%emt 0:00:26]} Bxf5 {[%emt 0:01:12]} 21. Rxf5 {[%emt 0:00:17]} Nc7 {[%emt 0:02:09]} 22. Bxg6 {[%emt 0:00:27]} hxg6 {[%emt 0:00:01]} 23. Rxf8+ {[%emt 0:00:16]} Rxf8 {[%emt 0:00:01]} 24. Rd3 $16 {[%emt 0:00:18]} Ne8 {[%emt 0:02:44]} 25. c5 {[%emt 0:00:23]} dxc5 {[%emt 0:00:34]} 26. Rd7 {[%emt 0:00:19]} b6 {[%emt 0:02:58]} 27. Rxa7 {[%emt 0:00:23]} Nd6 {[%emt 0:00:01]} 28. Rc7 {[%emt 0:00:13]} Rc8 {[%emt 0:00:02]} 29. Rd7 {[%emt 0:00:14]} Nb5 {[%emt 0:00:07]} 30. Rb7 {[%emt 0:00:21]} Ra8 {[%emt 0:00:13]} 31. a3 {[%emt 0:00:11]} Ra6 {[%emt 0:00:06]} 32. Nc4 {[%emt 0:00:12]} Nd4 33. Nxb6 {[%emt 0:00:38]} Ne6 {[%emt 0:00:40]} 34. Rb8+ {[%emt 0:00:23]} Kh7 {[%emt 0:00:00]} 35. h4 {[%emt 0:00:11]} Ra7 {[%emt 0:00:05]} 36. Nc4 {[%emt 0:00:12]} Nf4 {[%emt 0:00:02]} 37. Kc2 {[%emt 0:00:23]} Ng2 {[%emt 0:00:01]} 38. Rc8 {[%emt 0:00:16]} Ra6 {[%emt 0:00:04]} 39. Ne5 {[%emt 0:00:18]} Nxh4 {[%emt 0:00:01]} 40. Nf7 {[%emt 0:00:14]} 1-0